bitfinex/quotes_SOLUSD_20251128
["timestamp","ask_amount","ask_price","bid_price","bid_amount"]
[1764352921666,0.153819,137.05,137.03,0.68]
[1764352921854,0.153819,137.05,137.04,17.63110783]
[1764352922056,0.153819,137.05,137.04,16.10708444]
[1764352922353,0.153819,137.05,137.02,29.25947991]
[1764352922557,0.153819,137.05,137.03,7.97715262]
[1764352922943,0.153819,137.05,137.04,0.68]
[1764352924377,4.193819,137.05,136.98,0.68]
[1764352924540,3.473819,137.05,137.0,10.33396831]
[1764352924733,3.473819,137.05,137.01,19.14391323]
[1764352925165,3.473819,137.05,137.02,0.67]
[1764352925656,3.473819,137.05,137.02,11.00396831]
[1764352925865,0.153819,137.05,137.0,26.4431833]
[1764352926048,0.153819,137.05,137.01,10.33396831]
[1764352926249,0.153819,137.05,137.03,19.14391323]
[1764352926443,0.153819,137.05,137.04,10.33396831]
[1764352926650,0.153819,137.05,137.04,19.81391323]
[1764352927589,8.17045571,137.05,136.99,0.67]
[1764352927747,13.65396831,137.04,136.99,0.67]
[1764352927955,0.28432314,136.99,136.92,0.67]
[1764352928172,10.33396831,136.96,136.85,25.57544756]
[1764352928387,10.33396831,136.94,136.89,10.33396831]
[1764352928578,0.72,136.97,136.86,0.67]
[1764352928846,30.68283231,136.96,136.91,10.33396831]
[1764352929049,30.68283231,136.96,136.86,0.67]
[1764352929276,10.33396831,136.91,136.84,7.9776549]
[1764352929469,3.32,136.9,136.85,0.67]
[1764352929671,3.32,136.9,136.89,10.33396831]
[1764352929895,16.308864,136.95,136.89,10.33396831]
[1764352929896,7.30297026,136.94,136.89,10.33396831]
[1764352930100,3.32,136.97,136.93,10.33396831]
[1764352930384,3.32,136.97,136.96,10.33396831]
[1764352930570,3.32,137.0,136.96,10.33396831]
[1764352930908,3.32,137.02,136.98,10.33396831]
[1764352931487,4.04,137.02,136.97,10.33396831]
[1764352931870,4.04,137.02,136.95,10.33396831]
[1764352931871,17.63350139,137.0,136.95,10.33396831]
[1764352932190,7.29953308,137.0,136.96,10.33396831]
[1764352932488,10.61854143,137.02,136.97,10.33396831]
[1764352932697,3.32,137.02,136.98,10.33396831]
[1764352932999,3.32,137.02,137.0,10.33396831]
[1764352933370,3.32,137.02,136.98,8.80994492]
[1764352933558,3.32,137.03,137.0,10.33396831]
[1764352933760,10.33396831,137.02,136.97,10.33396831]
[1764352933975,3.32,137.03,136.98,10.33396831]
[1764352933976,14.37396831,137.03,136.98,10.33396831]
[1764352934181,3.32,137.03,137.0,10.33396831]
[1764352934476,3.32,137.03,136.99,10.33396831]
[1764352934701,10.61767631,137.03,136.99,10.33396831]
[1764352934878,4.02,137.03,136.99,10.33396831]
[1764352935081,3.32,137.03,137.0,10.33396831]
[1764352935291,10.33396831,137.02,136.97,10.33396831]
[1764352935496,21.65167121,137.03,136.97,10.33396831]
[1764352935697,3.32,137.03,137.0,10.33396831]
[1764352935898,0.153819,137.05,136.99,8.80994492]
[1764352936098,0.153819,137.05,137.04,10.33396831]
[1764352936306,0.153819,137.05,137.03,10.33396831]
[1764352937182,0.153819,137.05,137.04,11.01396831]
[1764352937903,0.153819,137.05,137.04,18.31110783]
[1764352938104,0.153819,137.05,137.04,11.01396831]
[1764352938277,0.153819,137.05,137.01,0.68]
[1764352938478,0.153819,137.05,137.02,0.68]
[1764352938679,0.153819,137.05,137.03,10.33396831]
[1764352940687,0.153819,137.05,137.04,11.01396831]
[1764352941010,0.153819,137.05,137.04,10.33396831]
[1764352941791,0.153819,137.05,137.02,7.97804351]
[1764352941982,0.153819,137.05,137.02,10.33396831]
[1764352942995,0.153819,137.05,137.02,11.01396831]
[1764352943192,0.153819,137.05,137.01,7.29873731]
[1764352943492,0.853819,137.05,137.01,7.29873731]
[1764352943686,0.153819,137.05,137.01,7.29873731]
[1764352943913,3.32,137.04,137.0,10.33396831]
[1764352944101,13.65396831,137.04,136.99,17.63363296]
[1764352944301,4.02,137.04,136.99,18.31363296]
[1764352944509,14.35396831,137.04,136.99,18.31363296]
[1764352944709,4.02,137.04,137.0,10.33396831]
[1764352945090,0.7,137.03,136.98,7.30019141]
[1764352945305,3.32,137.04,137.0,10.33396831]
[1764352945613,3.32,137.04,137.01,10.33396831]
[1764352945996,0.153819,137.05,137.01,18.31257958]
[1764352946309,14.50778731,137.05,137.0,17.6331252]
[1764352947194,11.03396831,137.04,136.99,17.63373588]
[1764352947394,11.03396831,137.04,136.99,7.29976757]
[1764352947721,0.7,137.03,136.99,7.29976757]
[1764352949608,13.2145466,137.04,136.99,13.21708811]
[1764352949809,13.9145466,137.04,136.99,13.21708811]
[1764352950001,7.99722606,137.04,136.99,13.21708811]
[1764352950316,0.7,137.04,136.99,13.89708811]
[1764352950520,0.153819,137.05,137.01,5.91732054]
[1764352950719,3.473819,137.05,137.01,5.91732054]
[1764352950901,3.473819,137.05,137.0,0.68]
[1764352951101,10.77044994,137.05,137.0,6.59732054]
[1764352951299,17.38777048,137.05,137.0,6.59732054]
[1764352951606,9.39113954,137.05,137.01,0.68]
[1764352951801,9.39113954,137.05,137.0,9.48994492]
[1764352952004,16.308864,136.98,136.88,5.91732054]
[1764352952224,5.91732054,136.93,136.88,0.68]
[1764352952516,10.6208688,136.97,136.92,5.91732054]
[1764352952517,3.32,136.97,136.92,5.91732054]
[1764352952825,3.32,136.99,136.94,5.91732054]
[1764352953119,9.93732054,136.99,136.92,15.40726546]
[1764352953308,5.91732054,136.98,136.92,15.40726546]
[1764352953509,9.93732054,136.99,136.93,0.68]
[1764352953819,5.91732054,136.98,136.91,9.48994492]
[1764352954002,5.91732054,136.98,136.92,0.68]
[1764352954207,9.23732054,136.99,136.93,7.30300153]
[1764352954403,5.91732054,136.98,136.92,13.90085207]
[1764352954920,6.58732054,136.98,136.92,0.68]
[1764352955425,0.67,136.98,136.92,6.59732054]
[1764352955624,5.91732054,136.97,136.91,13.22124675]
[1764352955810,6.58732054,136.97,136.91,13.22124675]
[1764352956007,0.28432314,136.98,136.9,16.11435893]
[1764352956309,0.28432314,136.98,136.91,0.67]
[1764352956310,16.308864,136.96,136.91,0.67]
[1764352956514,3.32,136.95,136.91,0.67]
[1764352956716,3.32,136.95,136.91,6.58732054]
[1764352956902,3.32,136.95,136.91,0.67]
[1764352957102,3.32,136.95,136.92,0.67]
[1764352958214,3.32,136.95,136.92,7.97330133]
[1764352958634,3.32,136.95,136.92,0.67]
[1764352958802,3.32,136.95,136.91,16.11396168]
[1764352959128,3.32,136.95,136.92,0.67]
[1764352959426,10.62194416,136.95,136.9,13.22178353]
[1764352959610,17.2092647,136.95,136.9,0.67]
[1764352959813,17.26318714,136.94,136.85,6.01732054]
[1764352960113,5.91732054,136.91,136.86,8.80994492]
[1764352960314,3.32,136.91,136.86,8.80994492]
[1764352960517,3.32,136.91,136.87,0.67]
[1764352960729,9.23732054,136.91,136.87,0.67]
[1764352960953,7.30244635,136.95,136.88,8.80994492]
[1764352961103,9.23732054,136.96,136.89,5.91732054]
[1764352961306,3.32,136.96,136.91,8.80994492]
[1764352961624,3.32,136.96,136.92,0.67]
[1764352962131,3.32,136.96,136.92,7.30353491]
[1764352962332,9.23732054,136.96,136.92,7.97353491]
[1764352962710,6.48180717,136.95,136.9,7.30411654]
[1764352962911,6.58732054,136.95,136.9,7.30411654]
[1764352963110,6.58732054,136.95,136.9,7.97411654]
[1764352963439,5.91732054,136.95,136.9,7.97411654]
[1764352963727,6.58732054,136.94,136.9,7.30411654]
[1764352964309,5.91732054,136.94,136.9,7.30411654]
[1764352965141,5.91732054,136.94,136.88,7.30516324]
[1764352965142,5.91732054,136.93,136.88,7.30516324]
[1764352965327,13.22002113,136.94,136.88,7.97516324]
[1764352965526,13.22002113,136.94,136.88,7.30516324]
[1764352965931,5.91732054,136.94,136.89,9.47994492]
[1764352966341,5.91732054,136.94,136.9,0.67]
[1764352966549,6.58732054,136.93,136.88,7.30516324]
[1764352966720,3.32,136.92,136.88,7.97516324]
[1764352968625,3.32,136.92,136.88,7.30516324]
[1764352968825,3.32,136.92,136.88,7.97516324]
[1764352969326,3.3,136.92,136.88,7.97516324]
[1764352969623,3.3,136.92,136.88,7.30516324]
[1764352969826,3.3,136.92,136.89,7.97499867]
[1764352971045,6.58732054,136.91,136.86,0.67]
[1764352971232,7.30278577,136.94,136.87,15.39726546]
[1764352971432,3.3,136.93,136.87,15.39726546]
[1764352971631,3.3,136.93,136.88,0.67]
[1764352971832,3.3,136.93,136.89,7.30513551]
[1764352972426,3.3,136.93,136.9,9.47994492]
[1764352972632,3.3,136.93,136.9,0.67]
[1764352972857,9.21732054,136.93,136.9,0.67]
[1764352973158,9.21732054,136.93,136.88,16.78544977]
[1764352973329,9.21732054,136.93,136.89,0.67]
[1764352973945,5.91732054,136.91,136.88,0.67]
[1764352974147,5.91732054,136.92,136.88,0.67]
[1764352974556,5.91732054,136.92,136.88,9.47994492]
[1764352974727,5.91732054,136.94,136.89,8.80994492]
[1764352974933,3.3,136.93,136.89,9.47994492]
[1764352975160,3.3,136.93,136.9,0.67]
[1764352976034,3.3,136.93,136.9,7.97448365]
[1764352976859,3.3,136.93,136.9,0.67]
[1764352977043,9.21732054,136.93,136.88,7.97530258]
[1764352977237,9.21732054,136.93,136.89,0.67]
[1764352977665,5.91732054,136.92,136.88,7.30530258]
[1764352977839,5.91732054,136.92,136.88,7.97530258]
[1764352978160,5.91732054,136.92,136.88,7.30530258]
[1764352978348,3.3,136.93,136.89,0.67]
[1764352978555,5.91732054,136.92,136.89,0.67]
[1764352979067,17.19036573,136.93,136.89,0.67]
[1764352979267,9.88732054,136.93,136.88,8.80994492]
[1764352979434,9.88732054,136.93,136.88,9.47994492]
[1764352979639,9.21732054,136.93,136.89,0.67]
[1764352979855,17.1904215,136.93,136.88,0.67]
[1764352980353,5.91732054,136.89,136.85,0.1]
[1764352980539,5.91732054,136.86,136.85,0.1]
[1764352980963,0.67,136.86,136.85,0.1]
[1764352981154,3.3,136.88,136.85,0.1]
[1764352981353,5.91732054,136.86,136.85,0.1]
[1764352981669,13.22405735,136.86,136.85,0.1]
[1764352981847,5.91732054,136.87,136.85,0.1]
[1764352982165,0.67,136.87,136.85,0.1]
[1764352982362,104.1,136.86,136.85,0.1]
[1764352983245,104.77,136.86,136.85,0.1]
[1764352983446,104.1,136.86,136.85,0.1]
[1764352985047,3.3,136.88,136.85,6.73732054]
[1764352985240,3.3,136.88,136.85,0.1]
[1764352985436,6.58732054,136.87,136.85,0.1]
[1764352985841,9.21732054,136.88,136.85,0.1]
[1764352986056,9.88732054,136.88,136.85,0.1]
[1764352986470,17.19314297,136.88,136.85,0.1]
[1764352987869,13.89353222,136.87,136.85,0.1]
[1764352988053,5.91732054,136.86,136.85,0.1]
[1764352988248,6.58732054,136.86,136.85,0.1]
[1764352988493,23.18050768,136.86,136.77,0.72]
[1764352988781,5.91732054,136.79,136.78,0.1]
[1764352988952,5.91732054,136.8,136.78,0.1]
[1764352989150,3.3,136.79,136.78,0.1]
[1764352989972,3.3,136.79,136.78,0.82]
[1764352990144,3.3,136.79,136.78,0.1]
[1764352990345,3.3,136.79,136.78,0.82]
[1764352990572,3.3,136.82,136.78,6.73732054]
[1764352990783,22.22618454,136.85,136.81,5.91732054]
[1764352990784,3.3,136.85,136.81,5.91732054]
[1764352990954,3.3,136.86,136.83,5.91732054]
[1764352991285,0.67,136.91,136.85,5.91732054]
[1764352991461,3.3,136.9,136.89,5.91732054]
[1764352992476,7.97300431,136.93,136.89,5.91732054]
[1764352992861,3.3,136.92,136.89,5.91732054]
[1764352993055,3.3,136.92,136.91,5.91732054]
[1764352993973,3.3,136.92,136.88,5.91732054]
[1764352993974,9.89732054,136.92,136.88,5.91732054]
[1764352994180,3.98,136.92,136.86,0.66]
[1764352994376,17.20090536,136.92,136.88,5.91732054]
[1764352994564,0.68,136.91,136.85,8.80994492]
[1764352994786,0.68,136.91,136.88,5.91732054]
[1764352995285,0.68,136.91,136.87,5.91732054]
[1764352995286,0.96432314,136.91,136.87,5.91732054]
[1764352995686,0.68,136.9,136.87,5.91732054]
[1764352995893,16.308864,136.91,136.88,5.91732054]
[1764352996085,16.308864,136.91,136.87,0.66]
[1764352996300,16.988864,136.91,136.87,5.91732054]
[1764352996499,16.308864,136.91,136.88,5.91732054]
[1764352996703,19.608864,136.92,136.88,5.91732054]
[1764352996901,20.288864,136.92,136.88,5.91732054]
[1764352997507,27.59246652,136.92,136.88,5.91732054]
[1764352997888,20.288864,136.92,136.88,5.91732054]
[1764352998089,3.3,136.92,136.9,5.91732054]
[1764352999087,3.3,136.92,136.91,5.91732054]
[1764353000316,3.3,136.92,136.91,6.57732054]
[1764353000522,3.3,136.96,136.91,13.8813889]
[1764353000704,26.23019956,136.99,136.95,5.91732054]
[1764353000705,3.3,136.98,136.95,5.91732054]
[1764353000892,3.98,136.98,136.94,5.91732054]
[1764353001098,0.68,136.97,136.93,5.91732054]
[1764353001416,3.3,136.98,136.95,5.91732054]
[1764353001585,3.98,136.98,136.95,5.91732054]
[1764353001790,0.68,136.97,136.94,5.91732054]
[1764353001991,7.98096354,136.97,136.95,5.91732054]
[1764353002726,0.68,136.96,136.94,5.91732054]
[1764353002913,3.3,136.95,136.94,5.91732054]
[1764353003616,7.29982811,136.99,136.94,6.57732054]
[1764353003796,3.3,136.97,136.94,0.66]
[1764353003993,3.3,136.97,136.96,5.91732054]
[1764353004616,16.308864,136.99,136.96,5.91732054]
[1764353004804,3.3,136.98,136.97,5.91732054]
[1764353006622,3.3,136.98,136.96,5.91732054]
[1764353006927,3.3,136.98,136.97,5.91732054]
[1764353007621,3.3,136.98,136.96,5.91732054]
[1764353007918,10.60044427,136.98,136.94,5.91732054]
[1764353008127,11.28044427,136.98,136.94,5.91732054]
[1764353008514,11.28044427,136.98,136.95,5.91732054]
[1764353009414,10.60044427,136.98,136.95,5.91732054]
[1764353009616,10.60044427,136.98,136.89,5.91732054]
[1764353009617,16.308864,136.93,136.89,5.91732054]
[1764353009830,3.3,136.92,136.9,5.91732054]
[1764353010024,3.3,136.92,136.91,5.91732054]
[1764353010215,3.3,136.92,136.9,5.91732054]
[1764353010620,3.98,136.92,136.86,7.96673681]
[1764353010806,3.98,136.92,136.89,10.31804117]
[1764353010807,104.1,136.91,136.89,10.31804117]
[1764353011008,104.1,136.9,136.89,0.66]
[1764353011216,104.1,136.9,136.85,34.38516806]
[1764353011425,3.3,136.92,136.85,34.38516806]
[1764353011616,3.3,136.92,136.86,0.66]
[1764353012211,3.3,136.92,136.91,10.31804117]
[1764353012418,3.3,136.94,136.91,10.31804117]
[1764353012627,3.3,136.94,136.93,10.31804117]
[1764353014035,3.98,136.94,136.91,10.31804117]
[1764353014207,3.3,136.94,136.92,10.31804117]
[1764353014614,10.6026673,136.94,136.92,10.31804117]
[1764353014813,11.2826673,136.94,136.91,10.31804117]
[1764353015416,10.6026673,136.94,136.91,10.31804117]
[1764353015729,115.12804117,136.93,136.88,10.31804117]
[1764353016043,10.6026673,136.94,136.87,10.31804117]
[1764353016044,115.12804117,136.92,136.87,10.31804117]
[1764353016215,115.12804117,136.92,136.83,27.08019166]
[1764353016216,3.3,136.91,136.84,0.66]
[1764353016416,107.4,136.91,136.88,10.31804117]
[1764353016616,104.1,136.9,136.88,10.31804117]
[1764353018044,104.1,136.89,136.83,8.80994492]
[1764353018349,107.4,136.88,136.84,10.31804117]
[1764353018552,104.1,136.88,136.87,10.31804117]
[1764353018849,3.3,136.89,136.87,17.62424413]
[1764353019050,104.1,136.93,136.88,10.97804117]
[1764353019233,3.3,136.92,136.88,0.66]
[1764353019431,4.01,136.92,136.9,10.31804117]
[1764353019827,3.3,136.92,136.91,10.31804117]
[1764353020240,4.01,136.92,136.9,10.31804117]
[1764353020553,3.3,136.92,136.91,10.31804117]
[1764353021353,11.31353491,136.92,136.88,10.31804117]
[1764353021651,11.31353491,136.92,136.88,0.66]
[1764353021652,104.1,136.91,136.88,0.66]
[1764353021858,104.1,136.91,136.84,8.80994492]
[1764353021859,107.4,136.9,136.84,8.80994492]
[1764353022065,26.62690517,136.88,136.81,25.5819788]
[1764353022222,26.62690517,136.88,136.85,10.31804117]
[1764353022223,3.3,136.87,136.85,10.31804117]
[1764353022422,16.308864,136.88,136.86,10.31804117]
[1764353022628,4.01,136.87,136.84,10.31804117]
[1764353022853,11.31645179,136.87,136.81,7.30896388]
[1764353023149,11.31645179,136.87,136.84,10.31804117]
[1764353023351,0.71,136.87,136.84,10.31804117]
[1764353023550,3.3,136.86,136.84,10.31804117]
[1764353023735,3.3,136.86,136.81,7.96896388]
[1764353023935,3.3,136.86,136.84,10.31804117]
[1764353024844,3.3,136.86,136.82,7.96875707]
[1764353025044,3.3,136.86,136.84,10.31804117]
[1764353025868,3.3,136.86,136.83,10.31804117]
[1764353026076,4.01,136.86,136.82,10.31804117]
[1764353026269,8.01727073,136.85,136.8,7.30992084]
[1764353026463,8.01727073,136.85,136.81,10.31804117]
[1764353026650,7.30727073,136.85,136.81,10.31804117]
[1764353026848,0.71,136.84,136.81,10.31804117]
[1764353027049,3.3,136.83,136.8,7.30992084]
[1764353027359,3.3,136.83,136.81,10.31804117]
[1764353028169,3.3,136.83,136.8,10.31804117]
[1764353028350,0.71,136.82,136.79,10.31804117]
[1764353028555,11.31837947,136.83,136.79,10.31804117]
[1764353028873,11.31837947,136.83,136.8,10.31804117]
[1764353029767,11.31837947,136.83,136.78,8.07100863]
[1764353029969,11.31837947,136.83,136.8,10.31804117]
[1764353030351,11.02804117,136.82,136.78,0.1]
[1764353030552,0.28432314,136.81,136.78,0.1]
[1764353030748,10.31804117,136.79,136.78,0.1]
[1764353030962,13.61804117,136.8,136.78,0.1]
[1764353031276,0.71,136.79,136.78,0.1]
[1764353031468,3.3,136.79,136.78,18.38887682]
[1764353031870,3.3,136.79,136.78,0.76]
[1764353032168,3.3,136.79,136.78,0.1]
[1764353032169,105.73278514,136.79,136.78,0.1]
[1764353032382,75.0,136.77,136.75,0.1]
[1764353032586,16.308864,136.74,136.71,10.41804117]
[1764353032770,3.3,136.73,136.71,0.1]
[1764353033087,3.3,136.73,136.72,10.31804117]
[1764353033290,4.01,136.73,136.71,0.1]
[1764353033587,3.3,136.73,136.71,0.1]
[1764353033977,10.61372262,136.73,136.71,0.1]
[1764353034287,3.3,136.73,136.71,0.1]
[1764353034690,3.3,136.73,136.71,10.41804117]
[1764353034869,3.3,136.73,136.71,0.1]
[1764353035394,10.61386357,136.73,136.71,0.1]
[1764353036593,11.32386357,136.73,136.71,0.1]
[1764353036776,0.71,136.72,136.71,0.1]
[1764353036975,11.32386357,136.73,136.71,0.1]
[1764353037174,3.3,136.73,136.71,10.41804117]
[1764353037785,11.32377883,136.73,136.71,0.1]
[1764353038001,18.62658315,136.72,136.71,0.1]
[1764353038286,8.30854198,136.72,136.71,0.1]
[1764353038490,18.62658315,136.72,136.71,0.1]
[1764353039064,93.62658315,136.72,136.71,0.1]
[1764353039604,0.28432314,136.66,136.6,0.66]
[1764353039769,3.3,136.65,136.61,10.31804117]
[1764353039992,3.3,136.65,136.6,10.31804117]
[1764353039993,7.31850117,136.64,136.6,10.31804117]
[1764353040194,28.66458351,136.64,136.58,7.98169245]
[1764353040395,0.28432314,136.63,136.6,10.31804117]
[1764353040715,3.3,136.62,136.58,7.32169245]
[1764353040897,3.3,136.62,136.59,0.66]
[1764353041302,3.3,136.62,136.57,0.1]
[1764353041303,3.3,136.62,136.57,0.76]
[1764353041604,3.3,136.62,136.6,10.31804117]
[1764353041806,4.01,136.62,136.58,10.31804117]
[1764353042112,3.3,136.62,136.58,10.31804117]
[1764353042314,10.31804117,136.6,136.57,0.1]
[1764353042514,0.28432314,136.58,136.57,0.1]
[1764353043090,17.92123844,136.64,136.57,11.07804117]
[1764353043290,3.3,136.63,136.58,8.80994492]
[1764353043508,3.3,136.63,136.58,9.46994492]
[1764353043719,3.3,136.63,136.59,0.66]
[1764353044101,3.3,136.63,136.6,7.32064421]
[1764353044514,3.3,136.63,136.62,10.31804117]
[1764353044699,3.3,136.63,136.62,10.97804117]
[1764353045516,3.3,136.63,136.59,10.31804117]
[1764353045927,3.3,136.63,136.62,10.31804117]
[1764353047021,3.3,136.63,136.62,10.97804117]
[1764353047327,18.63005399,136.69,136.62,18.29731612]
[1764353047504,10.61650848,136.68,136.64,10.31804117]
[1764353047708,10.61650848,136.68,136.57,8.08209477]
[1764353047709,26.62690517,136.65,136.57,8.08209477]
[1764353048030,26.91122831,136.63,136.57,0.76]
[1764353048322,7.31957253,136.62,136.57,11.07804117]
[1764353048522,3.3,136.61,136.57,11.07804117]
[1764353048723,3.3,136.61,136.58,10.31804117]
[1764353049097,3.3,136.61,136.59,10.31804117]
[1764353049307,3.3,136.61,136.59,10.97804117]
[1764353049693,107.4,136.61,136.58,10.31804117]
[1764353050095,114.72053149,136.61,136.57,10.21804117]
[1764353050295,125.03857266,136.61,136.56,10.31804117]
[1764353050534,0.28432314,136.6,136.56,10.31804117]
[1764353051191,10.31804117,136.6,136.55,10.31804117]
[1764353051399,141.88241206,136.61,136.56,10.31804117]
[1764353052092,104.1,136.61,136.57,10.97804117]
[1764353052293,3.3,136.6,136.58,10.31804117]
[1764353052497,3.3,136.6,136.59,10.31804117]
[1764353052708,3.3,136.6,136.59,10.97804117]
[1764353053419,3.3,136.61,136.59,10.97804117]
[1764353053594,0.71,136.6,136.57,10.31804117]
[1764353053795,0.71,136.6,136.54,10.31804117]
[1764353053796,10.31804117,136.59,136.54,10.31804117]
[1764353054021,3.3,136.58,136.53,0.66]
[1764353054215,20.93996332,136.58,136.53,0.66]
[1764353054394,20.93996332,136.58,136.53,10.97804117]
[1764353054817,3.3,136.58,136.54,0.72]
[1764353055032,3.3,136.58,136.54,11.03804117]
[1764353055233,10.99804117,136.57,136.52,11.13804117]
[1764353055539,20.93992203,136.58,136.53,10.31804117]
[1764353055943,0.96432314,136.57,136.52,0.1]
[1764353056144,17.64199105,136.54,136.52,0.1]
[1764353056311,13.61804117,136.53,136.52,0.1]
[1764353056660,14.29804117,136.53,136.52,0.1]
[1764353056813,18.32078897,136.57,136.52,11.13804117]
[1764353057019,3.3,136.56,136.52,10.41804117]
[1764353057207,3.98,136.56,136.52,0.1]
[1764353057413,91.308864,136.58,136.51,94.79418219]
[1764353057414,23.6306544,136.58,136.51,94.79418219]
[1764353057613,23.6306544,136.58,136.54,10.31804117]
[1764353057614,3.3,136.57,136.54,10.31804117]
[1764353057942,13.61804117,136.57,136.52,0.72]
[1764353058246,20.94047849,136.57,136.52,11.03804117]
[1764353058420,0.96432314,136.56,136.51,87.46887052]
[1764353058839,0.96432314,136.56,136.51,88.18887052]
[1764353059018,10.31804117,136.55,136.51,88.18887052]
[1764353059328,3.3,136.54,136.52,0.72]
[1764353059521,3.3,136.54,136.51,87.46887052]
[1764353059522,3.3,136.53,136.51,87.46887052]
[1764353059721,3.3,136.53,136.51,98.50691169]
[1764353060338,3.3,136.53,136.51,88.18887052]
[1764353060528,3.3,136.53,136.51,98.50691169]
[1764353060730,10.31804117,136.56,136.52,0.72]
[1764353060731,7.32286335,136.56,136.52,0.72]
[1764353061041,3.3,136.55,136.53,10.83804117]
[1764353061238,13.61804117,136.55,136.51,87.46887052]
[1764353061417,11.28236431,136.54,136.51,87.46887052]
[1764353061621,10.31804117,136.52,136.51,87.46887052]
[1764353061854,3.3,136.52,136.51,87.46887052]
[1764353062021,3.3,136.52,136.51,98.50691169]
[1764353062221,18.98429052,136.58,136.51,105.83238235]
[1764353062424,3.3,136.57,136.54,10.31804117]
[1764353062623,3.3,136.57,136.52,0.72]
[1764353062827,7.32128889,136.59,136.54,10.31804117]
[1764353063033,3.3,136.58,136.52,0.72]
[1764353063354,20.63608234,136.6,136.52,0.72]
[1764353063355,3.28,136.6,136.57,10.31804117]
[1764353063554,3.3,136.67,136.59,20.63608234]
[1764353063728,3.3,136.67,136.66,10.31804117]
[1764353063934,0.68,136.71,136.66,10.31804117]
[1764353064130,3.3,136.68,136.61,8.80994492]
[1764353064343,3.3,136.68,136.62,25.61850387]
[1764353064544,3.3,136.68,136.62,25.41850387]
[1764353064751,7.99510805,136.71,136.63,8.80994492]
[1764353064752,3.32,136.71,136.63,8.80994492]
[1764353064931,3.32,136.71,136.63,12.12994492]
[1764353065344,3.32,136.71,136.7,10.31804117]
[1764353065937,3.32,136.71,136.69,7.31570916]
[1764353066137,3.32,136.71,136.69,17.63375033]
[1764353066533,4.0,136.71,136.69,10.31804117]
[1764353066854,3.32,136.71,136.69,10.31804117]
[1764353067154,4.0,136.71,136.68,10.31804117]
[1764353067354,0.68,136.7,136.66,7.31694625]
[1764353067537,0.68,136.7,136.67,10.31804117]
[1764353067736,0.68,136.7,136.68,10.31804117]
[1764353067946,0.68,136.7,136.67,10.31804117]
[1764353068261,0.68,136.7,136.66,17.63498742]
[1764353069859,3.32,136.71,136.68,10.31804117]
[1764353070058,0.68,136.74,136.7,10.31804117]
[1764353070263,3.3,136.73,136.7,10.31804117]
[1764353070451,0.68,136.77,136.72,10.31804117]
[1764353070642,10.31804117,136.78,136.65,8.80994492]
[1764353070643,3.3,136.74,136.65,8.80994492]
[1764353070840,14.62629953,136.78,136.73,5.94031138]
[1764353071060,3.3,136.78,136.77,5.94031138]
[1764353071240,3.3,136.78,136.72,5.94031138]
[1764353071441,3.3,136.78,136.75,5.94031138]
[1764353071743,3.3,136.78,136.77,5.94031138]
[1764353072138,92.78,136.85,136.77,5.94031138]
[1764353072139,0.68,136.83,136.77,5.94031138]
[1764353072343,3.3,136.8,136.79,5.94031138]
[1764353072543,3.3,136.8,136.78,5.94031138]
[1764353072744,3.98,136.8,136.77,5.94031138]
[1764353073546,0.68,136.79,136.74,7.31280243]
[1764353073747,0.68,136.79,136.66,36.58563031]
[1764353073748,7.31154492,136.77,136.66,36.58563031]
[1764353073949,3.98,136.76,136.71,5.94031138]
[1764353074154,9.92031138,136.76,136.71,5.94031138]
[1764353074460,0.68,136.75,136.7,5.94031138]
[1764353074651,0.68,136.75,136.71,5.94031138]
[1764353075666,6.62031138,136.75,136.69,5.94031138]
[1764353075861,13.25385086,136.74,136.68,5.94031138]
[1764353076171,13.96385086,136.74,136.68,5.94031138]
[1764353076369,13.25385086,136.74,136.69,5.94031138]